Cogmind - Beta 14 @@@ ROGUE MODE // 2024.11.17 @ 15:39:58 Player: Arzon Result: Destroyed by DK-40G(R) with Subdweller Laser Performance ------------- Evolutions (0) 0 Regions Visited (3) 600 Robots Destroyed (24) 120 Value Destroyed (529) 529 Prototype IDs (2) 40 Alien Tech Used (0) 0 Bonus (42) 42 TOTAL SCORE: 1331 Bonus ------- Follower Combat Kills 42 Cogmind --------- Core Integrity 0/250 Matter 234/300 Energy 160/160 System Corruption 0% Temperature Cool (6) Movement Treading (160) Location -10/Subcaves Parts ------- > --- POWER (1) -------- Light Nuclear Core > --- PROPULSION (2) --- Improved Treads Improved Treads > --- UTILITY (2) ------ Large Storage Unit Targeting Computer > --- WEAPON (2) ------- Light Cannon Bore Cannon > --- INVENTORY (15) --- Ion Engine Ion Engine Improved Treads Improved Treads Medium Matter Pod (100) Light Cannon Light Cannon Light Cannon Light Cannon Light Cannon Mining Laser Peak State ------------ > --- POWER ------------ Light Nuclear Core > --- PROPULSION ------- Improved Treads Improved Treads > --- UTILITY ---------- Large Storage Unit Targeting Computer > --- WEAPON ----------- Light Cannon Bore Cannon > --- INVENTORY -------- Ion Engine Ion Engine Improved Treads Improved Treads Medium Matter Pod Light Cannon Light Cannon Light Cannon Light Cannon Light Cannon Mining Laser [Rating: 16] Favorites ----------- Power Ion Engine Engine Ion Engine Power Core Light Nuclear Core Propulsion Improved Treads Treads Improved Treads Leg Aluminum Leg Utility Targeting Computer Storage Large Storage Unit Processor Targeting Computer Weapon Light Cannon Energy Gun Particle Gun Ballistic Gun Light Assault Rifle Ballistic Cannon Light Cannon Build | -11 -10 -10 -10 ------- Run | Yrd Mat Min Sub Slots Evolved . | . . . . Power . | . . . . Propulsion . | . . . . Utility . | . . . . Weapon . | . . . . Parts Attached 24 | 6 17 1 . Power 4 | 1 3 . . Engine 3 | 1 2 . . Core 1 | . 1 . . Reactor . | . . . . Propulsion 8 | 2 6 . . Treads 2 | . 2 . . Leg 6 | 2 4 . . Wheel . | . . . . Hover . | . . . . Flight . | . . . . Utility 5 | 1 4 . . Device . | . . . . Storage 3 | 1 2 . . Processor 2 | . 2 . . Hackware . | . . . . Protection . | . . . . Artifact . | . . . . Weapon 7 | 2 4 1 . Energy Gun 3 | 2 1 . . Energy Cannon . | . . . . Ballistic Gun 1 | . 1 . . Ballistic Cannon 3 | . 2 1 . Launcher . | . . . . Special Weapon . | . . . . Impact Weapon . | . . . . Slashing Weapon . | . . . . Piercing Weapon . | . . . . Special Melee Weapon . | . . . . Unidentified Prototypes . | . . . . Parts Lost 1 | . 1 . . Power . | . . . . Propulsion 1 | . 1 . . Utility . | . . . . Weapon . | . . . . Highest Loss Streak 1 | . 1 . . To Critical Strikes . | . . . . Average Slot Usage (%) 99 | . 99 100 100 Engine 7 | . 13 . . Core 6 | . . 14 14 Treads 18 | . 12 28 28 Leg 8 | . 15 . . Storage 14 | . 14 14 14 Processor 13 | . 13 14 14 Energy Gun 6 | . 11 . . Ballistic Gun 3 | . 5 . . Ballistic Cannon 18 | . 11 28 28 Peak Build Rating 16 | 6 12 16 16 Average Rating 11 | 4 8 14 16 On Entrance 8 | . 6 12 16 Naked Turns . | . . . . Heaviest Build 37 | 12 31 37 37 Greatest Support 46 | 20 46 46 46 Greatest Overweight (x) 1 | . 1 . . Average Overweight (x) . | . . . . Largest Inventory Capacity 15 | 8 15 15 15 Average Capacity 12 | 7 10 15 15 Most Carried 12 | 6 12 11 11 Average Carried 8 | 2 7 10 11 Final Capacity 15 | 8 15 15 15 Final Carried 11 | 2 10 11 11 Class Distribution -------------------- 80% | Mutant 19% | Scavenger-Mutant Dominant Class ---------------- Mutant | -10/Materials Mutant | -10/Mines Mutant | -10/Subcaves Resources | -11 -10 -10 -10 ----------- Run | Yrd Mat Min Sub Matter Collected 803 | 260 379 164 . Remotely . | . . . . Salvage Created 730 | 92 376 198 64 Parts 45 | 2 30 11 2 Haulers Intercepted 2 | . 2 . . Recyclers Shooed 2 | . . 2 . Parts Field Recycled . | . . . . Retrieved Matter . | . . . . Parts Self-Destructed 1 | . . . 1 Prevented . | . . . . Kills | -11 -10 -10 -10 ------- Run | Yrd Mat Min Sub Combat Hostiles Destroyed 15 | . 8 5 2 Guns 6 | . 6 . . Cannons 9 | . 2 5 2 Classes Destroyed 8 | 1 3 3 1 Worker 1 | . . 1 . Builder 1 | . . 1 . Hauler 2 | . 2 . . Recycler 2 | 1 . 1 . Watcher 3 | . 3 . . Swarmer 4 | . . 3 1 Grunt 10 | . 8 2 . Subdweller 1 | . . . 1 Best Kill Streak 4 | 1 2 4 2 Combat Bots Only 3 | . 2 3 2 Max Kills in Single Turn 2 | 1 1 2 1 Gunslinging . | . . . . Exploded . | . . . . Melee . | . . . . Uniques/NPCs Destroyed . | . . . . Combat | -11 -10 -10 -10 -------- Run | Yrd Mat Min Sub Hostile Shots Fired 116 | . 78 25 13 Missed 42 | . 28 9 5 Damage Taken 943 | . 647 158 138 Core 260 | . 151 47 62 Absorbed by Shields . | . . . . Regen/Repaired (Parts) 17 | . 17 . . Core Remaining (%) 100 | 100 . . . Volleys Fired 84 | 5 59 14 6 Largest 2 | 2 2 2 2 Hottest 100 | 80 100 92 92 Shots Fired 167 | 10 117 28 12 Gun 103 | 10 93 . . Cannon 64 | . 24 28 12 Launcher . | . . . . Special . | . . . . Kinetic 95 | . 55 28 12 Thermal 72 | 10 62 . . Explosive . | . . . . Electromagnetic . | . . . . Robot Hit Streak 12 | 5 12 3 5 Robot Miss Streak 4 | 1 3 4 2 Penetration Max 1 | . . 1 . Secondary Targets 1 | . 1 . . Max Gunslinging Chain 1 | . 1 . . Shots Hit Robots 95 | 7 69 12 7 Core Hits 42 | 2 28 9 3 Critical Kills 5 | . . 4 1 Critical Parts Destroyed . | . . . . Critical Strikes 8 | . 1 4 3 Burn 1 | . 1 . . Destroy 7 | . . 4 3 Melee Attacks . | . . . . Impact . | . . . . Slashing . | . . . . Piercing . | . . . . Sneak Attacks . | . . . . Combat Hostiles . | . . . . Follow-up Attacks . | . . . . Damage Inflicted 1377 | 78 889 291 119 Guns 657 | 78 579 . . Cannons 708 | . 300 289 119 Explosions . | . . . . Melee . | . . . . Ramming 12 | . 10 2 . Kinetic 856 | . 448 289 119 Thermal 509 | 78 431 . . Explosive . | . . . . Electromagnetic . | . . . . Impact . | . . . . Slashing . | . . . . Piercing . | . . . . Highest Corruption . | . . . . Average Corruption . | . . . . Corruption Purged . | . . . . Corruption Blocked . | . . . . Overload Shots . | . . . . Overflow Damage . | . . . . Projectiles . | . . . . Explosions . | . . . . Melee . | . . . . Knockbacks 4 | . 3 1 . Impact . | . . . . Kinetic 4 | . 3 1 . Secondary . | . . . . Self-Inflicted Damage . | . . . . Shots . | . . . . Rammed 2 | . 1 1 . Targets Rammed 4 | . 3 1 . Kicked 2 | . 2 . . Crushed . | . . . . Highest Temperature 224 | 72 224 216 1 Average Temperature 78 | 33 80 84 1 Received Heat Transfer 492 | . 375 69 48 Siege Activations . | . . . . Robots Corrupted . | . . . . Combat Hostiles . | . . . . Parts Fried . | . . . . Impact Corruptions . | . . . . Robots Melted . | . . . . Combat Hostiles . | . . . . Parts Melted 3 | . 3 . . Heat Transferred 1222 | 175 1047 . . Parts Sabotaged . | . . . . Parts Stolen . | . . . . Parts Stripped . | . . . . Power Chain Reactions . | . . . . Alert | -11 -10 -10 -10 ------- Run | Yrd Mat Min Sub Peak Influence 175 | 5 175 131 . Initial 3 | . 3 . . Average 45 | . 43 52 . Maximum Alert Level . | . . . . Low Security (%) 100 | 100 100 100 . Level 1 . | . . . . Level 2 . | . . . . Level 3 . | . . . . Level 4 . | . . . . Level 5 . | . . . . High Security . | . . . . Max Security . | . . . . Squads Dispatched 2 | . 2 . . Investigation 1 | . 1 . . Extermination . | . . . . Reinforcement 1 | . 1 . . Assault . | . . . . Garrison . | . . . . Intercept . | . . . . Searches Triggered . | . . . . Construction Impeded . | . . . . Haulers Reinforced . | . . . . Active Scanning Responses . | . . . . Cargo Convoy Interrupts . | . . . . Stealth | -11 -10 -10 -10 --------- Run | Yrd Mat Min Sub Distress Signals . | . . . . Communications Jammed . | . . . . Distress Signals . | . . . . Times Spotted 33 | . 16 9 8 Peak Tracking Total 7 | . 3 3 7 Tactical Retreats 2 | . . 1 1 Traps | -11 -10 -10 -10 ------- Run | Yrd Mat Min Sub Traps Triggered 1 | . 1 . . Indirectly . | . . . . Trap Hack Attempts . | . . . . Triggered . | . . . . Disarmed . | . . . . Reprogrammed . | . . . . Reused . | . . . . Traps Extracted . | . . . . Installed . | . . . . Triggered . | . . . . Machines | -11 -10 -10 -10 ---------- Run | Yrd Mat Min Sub Machines Disabled 1 | . . . 1 Max in Single Turn 1 | . . . 1 Machines Repaired . | . . . . Machines Dismantled . | . . . . Machines Sabotaged . | . . . . Overloaded Fab Kills . | . . . . Hacking | -11 -10 -10 -10 --------- Run | Yrd Mat Min Sub Machines Accessed 6 | . 6 . . Terminals 5 | . 5 . . Fabricators . | . . . . Repair Stations 1 | . 1 . . Recycling Units . | . . . . Scanalyzers . | . . . . Garrison Access . | . . . . Total Hacks 18 | . 18 . . Successful 9 | . 9 . . Failed 9 | . 9 . . Catastrophic 3 | . 3 . . Database Lockouts . | . . . . Manual 15 | . 15 . . Terminals 16 | . 16 . . Fabricators . | . . . . Repair Stations 2 | . 2 . . Recycling Units . | . . . . Scanalyzers . | . . . . Garrison Access . | . . . . Terminal Hacks 7 | . 7 . . Prototype ID Bank 2 | . 2 . . Branch Access Points 2 | . 2 . . Emergency Access Points 1 | . 1 . . Locate Traps 1 | . 1 . . Registered Components 1 | . 1 . . Fabricator Hacks . | . . . . Repair Station Hacks 2 | . 2 . . Scan Component 1 | . 1 . . Repair 1 | . 1 . . Recycling Unit Hacks . | . . . . Scanalyzer . | . . . . Garrison Access Hacks . | . . . . Unauthorized Hacks . | . . . . Terminals . | . . . . Fabricators . | . . . . Repair Stations . | . . . . Recycling Units . | . . . . Scanalyzers . | . . . . Garrison Access . | . . . . Data Cores Recovered . | . . . . Used . | . . . . Hacking Detections 6 | . 6 . . Full Trace Events 3 | . 3 . . Feedback Events . | . . . . Feedback Blocked . | . . . . Robot Schematics Acquired . | . . . . Robots Built . | . . . . Authchips . | . . . . Time . | . . . . Total Robot Build Rating . | . . . . Part Schematics Acquired . | . . . . Parts Built . | . . . . Authchips . | . . . . Time . | . . . . Total Part Build Rating . | . . . . Parts Repaired 1 | . 1 . . Time 38 | . 38 . . Parts Recycled . | . . . . Recycled Matter . | . . . . Retrieved Matter . | . . . . Retrieved Components . | . . . . Parts Scanalyzed . | . . . . Part Schematics Acquired . | . . . . Parts Damaged . | . . . . Bothacking | -11 -10 -10 -10 ------------ Run | Yrd Mat Min Sub Used RIF Installer . | . . . . Robots Hacked . | . . . . Non-combat . | . . . . Combat . | . . . . Robot Hacks Applied . | . . . . Relay Couplers Released . | . . . . Fabnet Peak Effective % . | . . . . Robots Rewired . | . . . . Allies Hacked . | . . . . Hacks Repelled . | . . . . Allies | -11 -10 -10 -10 -------- Run | Yrd Mat Min Sub Total Allies 2 | . . 2 . Largest Group 2 | . . 2 2 Highest-Rated Group 39 | . . 39 39 Highest-Rated Ally 31 | . . 31 31 Total Orders . | . . . . Ally Attacks 14 | . . 7 7 Total Damage 209 | . . 85 124 Kills 6 | . . 3 3 Allies Corrupted . | . . . . Allies Melted . | . . . . Intel | -11 -10 -10 -10 ------- Run | Yrd Mat Min Sub Robot Analysis Total . | . . . . Derelict Logs Recovered 4 | . . 3 1 Drone Launches . | . . . . Drone Recoveries . | . . . . Exploration | -11 -10 -10 -10 ------------- Run | Yrd Mat Min Sub Turns Passed 2670 | 71 1483 970 146 Spaces Moved 1564 | 40 870 573 81 Core 8 | 8 . . . Treads 995 | . 341 573 81 Legs 561 | 32 529 . . Wheels . | . . . . Hover . | . . . . Flight . | . . . . Fastest Speed 50 | 50 120 160 160 Average Speed 147 | 106 139 160 160 Slowest Speed 190 | 120 190 160 160 Overloaded Moves . | . . . . Propulsion Burnouts . | . . . . Robots Hopped . | . . . . Cave-ins Triggered . | . . . . Exploration Rate (%) 51 | 3 95 97 9 Regions Visited 3 Branch Regions 2 Pre-discovered Areas 2 | . . 1 1 Known Exits Taken 1 | . 1 . . Unknown Exits Taken 2 | 1 . 1 . Scrap Searched 1 | . . 1 . Spaces Dug . | . . . . Terrain Destroyed 9 | . . 9 . Melee . | . . . . Projectile 9 | . . 9 . AOE . | . . . . Terrain Rammed . | . . . . Walls Destroyed . | . . . . Machines Disabled . | . . . . Actions | -11 -10 -10 -10 --------- Run | Yrd Mat Min Sub Total 1772 | 58 1030 597 87 Wait 45 | . 37 8 . Move 1561 | 39 869 572 81 Hop . | . . . . Pick Up 37 | 8 28 1 . Fast Attach . | . . . . Attach 9 | 6 3 . . Detach . | . . . . Swap 15 | . 14 1 . Drop 17 | . 17 . . Fire 84 | 5 59 14 6 Melee . | . . . . Ram . | . . . . Kick 2 | . 2 . . Crush 2 | . 1 1 . Escape Stasis . | . . . . Rewire . | . . . . Trap . | . . . . Miscellaneous . | . . . . Route ------- -11/Scrapyard -10/Materials (discovered 4 exits: *Mat x2 / *Min x2) -10/Mines (discovered 3 exits: *Mat x2 / [*Sub]) -10/Subcaves History --------- Turn | Location | Event 6 | -11/Scrapyard | Discovered new exit (range 16) 72 | -11/Scrapyard | Entered Materials 267 | -10/Materials | Discovered new exit (range 13) 296 | -10/Materials | Identified exit to Mines 315 | -10/Materials | Build established: Mutant 457 | -10/Materials | Discovered new exit (range 16) 474 | -10/Materials | Identified exit to Materials 660 | -10/Materials | Core integrity fell below 50% 673 | -10/Materials | Build established: Scavenger-Mutant 1055 | -10/Materials | Discovered exit to Materials (range 5) 1204 | -10/Materials | Build established: Mutant 1479 | -10/Materials | Repaired Lgt. Nuclear Core 1555 | -10/Materials | Entered Mines 1575 | -10/Mines | Met a Derelict bent on vengeance 1584 | -10/Mines | Discovered exit to Materials (range 7) 1584 | -10/Mines | Discovered exit to Materials (range 6) 1744 | -10/Mines | Learned Materials trap positions 1895 | -10/Mines | A weapon hastily lodged in a ceiling crevice suddenly fell to the ground 2391 | -10/Mines | Learned location of Mines (-9) 2515 | -10/Mines | Discovered new exit (range 4) 2525 | -10/Mines | Entered Subcaves 2525 | -10/Subcaves | Accompanied by 2 allies 2530 | -10/Subcaves | Led the pair of lost Derelicts to an unsafe place 2651 | -10/Subcaves | Ambushed by Subdwellers from Twisted Machinery 2664 | -10/Subcaves | Core integrity fell below 20% 2671 | -10/Subcaves | Destroyed by DK-40G(R) with Subdweller Laser Last Messages --------------- World map updated: -10/Materials. I8-87V(g): "Following you was a bad idea, I think." HV Slug penetrates DK-40G(R). DK-40G(R) suffers critical hit (Destroy). R7-FWO(R) suffers critical hit (Destroy). R7-FWO(R) destroyed. Subatomizers dissect the Sub. Monowheel. HV Slug penetrates Wall. HV Slug penetrates S-10 Pest. S-10 Pest destroyed. HV Slug penetrates Wall. Machine disabled. S-10 Pest destroyed. DK-40G(R) affixes Scrap Shield Fragment to Scrap Shield. DK-40G(R) suffers critical hit (Destroy). Lgt. Assault Rifle fries itself beyond repair. S-10 Pest destroyed. HV Slug penetrates Twisted Machinery. Map ----- +----------------------------------------------------+ | ????????????????????## ## #?????????????????? | | ????????????????????# # ## #?????????????????? | | ????????????????????# ########?????????????????? | | ????????????????????#" #????????????????????????? | | ????????????????????# " #????????????????????????? | | ????????????????????## ######???????????????????? | | ????????????????????##" """"#???????????????????? | | ????????????????????#" #???????????????????? | | ???????????????????## ##??????????????????? | | ?????????????????### ## #??????????????????? | | ?????????????????# #### #??????????????????? | | ????????????????# " #?# ##??????????????????? | | ???????????????# """ #?# #???????????????????? | | ???????????????## " ##?# ##??????????????????? | | ????????????????###"" #??# #??????????????????? | | ??????????????????# " #??# #??????????????????? | | ??????????????????# "##### ##??????????????????? | | ??????????????????""#??# #??????????????????? | | ??????????????????????##z ##??????????????????? | | ??????????????????????# # #???????????????????? | | ??????????????????????## ####???????????????????? | | ??????????????????????## #?????????????????????? | | ??????????????????????# #?????????????????????? | | ??????????????????????## #?????????????????????? | | ???????????????????????# ##?????????????????????? | | ???????????????????????#g@###### ????????????? | | ???????????????????????# "" "????????????? | | ??????????????????????# % ????????????? | | ??????????????????????# =%% ""#??????????? | | ??????????????????????## ######* "#??????????? | | ???????????????????????# #?????? "#??????????? | | ??????????????????????? ???????? ""???????????? | | ???????????????????????# ??????????????????????? | | ???????????????????????# ??????????????????????? | | ??????????????????????? R%#??????????????????????? | | ??????????????????????? %=???????????????????????? | | ??????????????????????? ???????????????????????? | | ??????????????????????? "???????????????????????? | | ???????????????????????##"???????????????????????? | | ?????????????????????????????????????????????????? | | ?????????????????????????????????????????????????? | | ?????????????????????????????????????????????????? | | ?????????????????????????????????????????????????? | | ?????????????????????????????????????????????????? | | ?????????????????????????????????????????????????? | | ?????????????????????????????????????????????????? | | ?????????????????????????????????????????????????? | | ?????????????????????????????????????????????????? | | ?????????????????????????????????????????????????? | | ?????????????????????????????????????????????????? | +----------------------------------------------------+ Best States ------------- Heat Dissipation 25 Energy Generation 14 Energy Capacity 250 Matter Stores 300 Matter Capacity 300 Sight Range 16 Terrain Scan Density 10 Evasion (%) 55 Targeting Accuracy 5 Recoil Reduction 2 Item Schematics ----------------- None Robot Schematics ------------------ None Fabricated ------------ Nothing Alien Tech Used ----------------- None Achievements -------------- None Challenges ------------ None Game ------ Seed WaveColdNullifier Manual? 0 Play Time 00:17:38 Cumulative 14.3 hours Start 2024.11.17 @ 15:23:10 End 2024.11.17 @ 15:39:58 Sessions 1 Manual Loads 0 Difficulty Rogue Special Mode None Game No. 17 Rogue 17 Adventurer 0 Explorer 0 Win Type - Total 0 Types 0/0/0/0/0/0/0/0/0 Lore% 10 Gallery% 12 Achievement% 16 Wizard Run 0 Options --------- Layout 1 ASCII 0 Keyboard 0 Movement Mouse Keybinds 0 Fullscreen 1 Font 48/Smallcaps Map View 50x35 Zoom Use 0% Tactical HUD 0 Map Filters NONE Filters NONE Steam 1 RUN: e9331355-2595-4fcc-99e5-ecf64189f636